bitfinex/quotes_SOLUSD_20260203
["timestamp","ask_amount","ask_price","bid_price","bid_amount"]
[1770138936106,10.76317346,100.25,100.21,9.97892437]
[1770138936304,4.11665776,100.25,100.21,9.97892437]
[1770138936604,6.6465157,100.24,100.2,14.08384096]
[1770138936905,10.76317346,100.25,100.21,9.97841867]
[1770138937103,34.90262114,100.28,100.22,9.97797762]
[1770138937104,10.76317346,100.26,100.22,9.97797762]
[1770138937492,14.09104887,100.26,100.22,9.97797762]
[1770138937891,6.6465157,100.25,100.21,14.08296099]
[1770138938401,10.76317346,100.25,100.21,4.10431202]
[1770138938599,6.6465157,100.24,100.2,9.97959039]
[1770138939303,6.6465157,100.24,100.2,14.08390241]
[1770138939505,20.73856098,100.25,100.21,9.97889772]
[1770138939704,6.6465157,100.24,100.2,14.08382417]
[1770138939891,10.76317346,100.24,100.2,14.08382417]
[1770138940208,9.97538752,100.25,100.19,9.98053446]
[1770138940209,10.76317346,100.22,100.19,9.98053446]
[1770138940392,4.11665776,100.22,100.19,9.98053446]
[1770138940595,34.91304338,100.25,100.2,9.97998946]
[1770138940596,10.76317346,100.24,100.2,9.97998946]
[1770138940810,4.11665776,100.24,100.2,16.62650516]
[1770138941015,10.76317346,100.23,100.19,14.08489017]
[1770138941211,4.11665776,100.24,100.18,14.08580918]
[1770138941398,10.76317346,100.23,100.18,20.73232488]
[1770138941601,14.09470605,100.22,100.18,20.73232488]
[1770138942003,4.11665776,100.22,100.18,20.73232488]
[1770138942316,4.11665776,100.21,100.16,14.08788721]
[1770138942516,34.92008658,100.23,100.15,20.73512096]
[1770138942517,10.76317346,100.2,100.15,20.73512096]
[1770138942821,10.76317346,100.18,100.14,14.08984859]
[1770138943027,4.11665776,100.22,100.16,10.75082772]
[1770138943321,4.11665776,100.22,100.12,80.04515307]
[1770138943322,10.76317346,100.2,100.15,20.73535981]
[1770138943502,20.74396696,100.2,100.15,20.73535981]
[1770138943897,20.74396696,100.2,100.15,45.69791597]
[1770138944212,4.11665776,100.19,100.15,20.73535981]
[1770138944513,16.6273092,100.2,100.15,20.73535981]
[1770138944700,14.09745126,100.2,100.16,10.75082772]
[1770138944903,14.09745126,100.2,100.15,45.69791597]
[1770138945198,20.74396696,100.2,100.15,45.69791597]
[1770138946005,20.74396696,100.2,100.16,14.08795316]
[1770138946192,20.74396696,100.2,100.16,4.10431202]
[1770138946399,20.74396696,100.2,100.16,14.0881263]
[1770138946813,9.9795699,100.21,100.17,10.75082772]
[1770138947000,14.09518198,100.22,100.18,4.10431202]
[1770138947197,20.74169768,100.22,100.18,4.10431202]
[1770138947408,10.76317346,100.2,100.15,14.08894183]
[1770138947621,6.6465157,100.19,100.15,14.08894183]
[1770138947996,14.09371053,100.23,100.18,10.75082772]
[1770138948310,6.6465157,100.22,100.18,4.10431202]
[1770138948517,10.76317346,100.21,100.16,10.75082772]
[1770138949109,10.76317346,100.21,100.16,6.6465157]
[1770138949410,6.6465157,100.2,100.16,4.10431202]
[1770138950595,6.6465157,100.19,100.15,9.98453496]
[1770138950801,6.6465157,100.19,100.15,3.15861192]
[1770138951000,6.6465157,100.19,100.16,9.98401113]
[1770138951198,6.6465157,100.19,100.16,9.98401686]
[1770138951516,9.78927823,100.2,100.16,9.98401686]
[1770138951815,6.6465157,100.2,100.16,38.10269267]
[1770138952015,6.6465157,100.19,100.16,13.14262878]
[1770138952196,9.78927823,100.2,100.16,13.14262878]
[1770138952398,6.6465157,100.19,100.15,9.98498988]
[1770138952617,6.6465157,100.19,100.15,13.1436018]
[1770138953001,6.6465157,100.18,100.15,9.98498988]
[1770138953320,6.6465157,100.18,100.14,13.14423281]
[1770138954198,6.6465157,100.16,100.14,9.98578893]
[1770138954405,9.87692204,100.17,100.13,13.18261248]
[1770138954599,3.23040634,100.19,100.14,3.19637496]
[1770138954804,6.6465157,100.18,100.14,3.19637496]
[1770138955214,9.87692204,100.18,100.14,3.19637496]
[1770138955718,6.6465157,100.17,100.13,9.98623752]
[1770138956017,6.6465157,100.17,100.13,13.18261248]
[1770138956316,6.6465157,100.16,100.13,13.18261248]
[1770138956521,6.6465157,100.16,100.13,9.98623752]
[1770138958604,19.86105376,100.16,100.12,13.18384865]
[1770138959110,9.87692204,100.14,100.1,3.19637496]
[1770138959307,6.6465157,100.13,100.1,13.1859268]
[1770138959827,9.87692204,100.14,100.1,19.8324425]
[1770138960004,9.87692204,100.14,100.1,38.16095177]
[1770138960206,19.86330908,100.14,100.1,13.1859268]
[1770138960520,6.6465157,100.11,100.06,28.17952344]
[1770138960734,9.87692204,100.09,100.05,13.19076075]
[1770138960906,6.6465157,100.07,100.03,13.19289494]
[1770138961100,6.6465157,100.06,100.03,3.19637496]
[1770138961307,6.6465157,100.06,100.03,13.19334453]
[1770138961504,9.87692204,100.08,100.04,3.19637496]
[1770138961822,9.87692204,100.12,100.07,9.84289066]
[1770138962006,3.23040634,100.07,100.03,13.19334453]
[1770138962322,3.23040634,100.07,99.965,40.01366822]
[1770138962323,9.87692204,100.04,99.996,3.19637496]
[1770138962534,6.6465157,100.03,99.996,3.19637496]
[1770138962701,9.87692204,100.06,100.02,3.19637496]
[1770138962922,219.69243059,100.14,100.01,6.6465157]
[1770138962923,9.87692204,100.1,100.05,9.84289066]
[1770138963106,3.23040634,100.12,100.08,6.6465157]
[1770138963324,3.23040634,100.12,100.09,6.6465157]
[1770138963526,3.23040634,100.16,100.11,9.84289066]
[1770138963737,3.23040634,100.17,100.13,6.6465157]
[1770138963906,9.87692204,100.15,100.1,9.84289066]
[1770138964228,6.6465157,100.14,100.1,3.19637496]
[1770138964429,9.87692204,100.11,100.06,47.57656554]
[1770138964619,9.87692204,100.11,100.07,9.99279178]
[1770138964927,9.87692204,100.11,100.06,19.83614647]
[1770138965124,9.87692204,100.11,100.03,32.01527085]
[1770138965125,9.87692204,100.1,100.05,9.84289066]
[1770138965326,9.87692204,100.1,100.06,9.99349011]
[1770138965640,6.6465157,100.11,100.06,19.83638077]
[1770138965811,16.63490327,100.12,100.08,3.19637496]
[1770138966134,19.86439676,100.13,100.08,9.84289066]
[1770138966329,3.23040634,100.15,100.11,6.6465157]
[1770138966534,13.21556099,100.15,100.11,6.6465157]
[1770138966834,6.6465157,100.14,100.1,9.84289066]
[1770138967316,3.23040634,100.1,100.03,3.19637496]
[1770138967516,6.6465157,100.08,100.04,13.19237655]
[1770138967710,6.6465157,100.07,100.04,3.19637496]
[1770138967913,6.6465157,100.06,100.02,13.19387252]
[1770138968113,6.6465157,100.06,100.03,9.99693204]
[1770138968328,6.6465157,100.07,100.03,13.193307]
[1770138968532,6.6465157,100.07,99.989,27.74]
[1770138968533,6.6465157,100.05,100.01,13.19499649]
[1770138969033,6.6465157,100.07,100.03,9.9969077]
[1770138969205,3.23040634,100.08,100.03,44.8323006]
[1770138969409,3.23040634,100.08,100.0,0.14216157]
[1770138969410,16.63591259,100.11,100.06,9.84289066]
[1770138969611,16.63591259,100.11,100.05,9.99500249]
[1770138969612,3.23040634,100.12,100.07,3.19637496]
[1770138969810,13.21850838,100.12,100.08,6.6465157]
[1770138970020,19.86502408,100.12,100.07,9.84289066]
[1770138970344,19.86502408,100.12,100.07,3.19637496]
[1770138970538,9.87692204,100.14,100.09,9.84289066]
[1770138970736,3.23040634,100.13,100.09,6.6465157]
[1770138971042,2.73040634,100.13,100.09,9.84289066]
[1770138971241,9.98203234,100.18,100.13,3.19637496]
[1770138971544,9.97605746,100.24,100.16,6.6465157]
[1770138971838,6.6465157,100.2,100.16,6.6465157]
[1770138972227,16.62257316,100.24,100.19,6.6465157]
[1770138972421,79.97636698,100.29,100.21,9.84289066]
[1770138972422,0.2,100.29,100.21,9.84289066]
[1770138972618,0.2,100.29,100.17,6.78867727]
[1770138972619,6.6465157,100.25,100.2,9.84289066]
[1770138972819,6.6465157,100.25,100.2,3.19637496]
[1770138973020,6.6465157,100.24,100.2,3.19637496]
[1770138973226,6.6465157,100.22,100.18,3.19637496]
[1770138973528,6.6465157,100.22,100.18,13.17773425]
[1770138974624,6.6465157,100.19,100.15,9.98491471]
[1770138974831,6.6465157,100.17,100.13,9.98662644]
[1770138975017,9.97717072,100.23,100.17,3.19637496]
[1770138975222,6.6465157,100.21,100.17,3.19637496]
[1770138975417,6.6465157,100.21,100.17,13.17923428]
[1770138975641,6.6465157,100.18,100.13,37.58289066]
[1770138975845,6.6465157,100.16,100.11,6.6465157]
[1770138976148,6.6465157,100.16,100.12,3.19637496]
[1770138976444,6.64119713,100.14,100.1,38.16140992]
[1770138976644,6.64119713,100.14,100.1,13.18638495]
[1770138977320,9.87160347,100.16,100.11,9.83757209]
[1770138977642,9.87160347,100.16,100.12,9.98801438]
[1770138978138,6.64119713,100.14,100.1,9.98939634]
[1770138978341,6.64119713,100.14,100.08,9.9916722]
[1770138978342,6.64119713,100.12,100.08,9.9916722]
[1770138978527,6.64119713,100.11,100.07,3.19637496]
[1770138978734,3.23040634,100.13,100.07,34.81929023]
[1770138978938,6.64119713,100.13,100.09,3.19637496]
[1770138979126,3.23040634,100.14,100.09,9.83757209]
[1770138979448,9.87160347,100.16,100.12,6.64119713]
[1770138979641,9.87160347,100.18,100.13,6.64119713]
[1770138979830,3.23040634,100.18,100.14,6.64119713]
[1770138980151,19.85232279,100.2,100.15,6.64119713]
[1770138980628,9.87160347,100.2,100.16,6.64119713]
[1770138980824,3.23040634,100.2,100.16,6.64119713]
[1770138981021,19.07840756,100.22,100.17,6.64119713]
[1770138981229,2.45871809,100.22,100.17,9.04023145]
[1770138981536,9.09991522,100.22,100.17,9.04023145]
[1770138981744,9.09991522,100.22,100.17,19.02319604]
[1770138981927,9.09991522,100.22,100.16,9.04023145]
[1770138981928,6.64119713,100.21,100.16,9.04023145]
[1770138982231,6.64119713,100.21,100.17,9.98297811]
[1770138982436,6.64119713,100.21,100.16,9.04023145]
[1770138982437,6.64119713,100.2,100.16,2.39903432]
[1770138982641,9.09991522,100.21,100.16,19.02424297]
[1770138983046,34.91627729,100.24,100.17,19.02308528]
[1770138983047,6.64119713,100.22,100.17,19.02308528]
[1770138983725,12.43672194,100.23,100.17,19.02308528]
[1770138983934,6.64119713,100.22,100.17,19.02308528]
[1770138984132,6.64119713,100.24,100.19,9.04023145]
[1770138984552,6.64119713,100.22,100.17,43.9806574]
[1770138984856,9.09991522,100.22,100.17,19.0232233]
[1770138985034,6.64119713,100.21,100.17,12.38202617]
[1770138985624,9.09991522,100.22,100.17,19.0232233]
[1770138985847,2.45871809,100.22,100.18,6.64119713]
[1770138986053,19.07809211,100.22,100.17,19.0232233]
[1770138986345,2.45871809,100.24,100.18,2.39903432]
[1770138986552,6.64119713,100.23,100.18,9.04023145]
[1770138987052,9.09991522,100.23,100.18,9.04023145]
[1770138987451,6.64119713,100.21,100.17,12.38202617]
[1770138987754,6.64119713,100.23,100.18,9.04023145]
[1770138987940,9.09991522,100.23,100.18,9.04023145]
[1770138988353,2.45871809,100.23,100.19,6.64119713]
[1770138988851,9.09991522,100.25,100.2,9.04023145]
[1770138989163,2.65871809,100.29,100.24,6.64119713]
[1770138989332,2.45871809,100.28,100.23,2.39903432]
[1770138989532,9.09991522,100.26,100.21,9.04023145]
[1770138989731,16.6144696,100.27,100.22,19.01827974]
[1770138989933,9.09991522,100.28,100.22,37.32220334]
[1770138990144,0.2,100.29,100.27,6.64119713]
[1770138990343,6.84119713,100.32,100.28,6.64119713]
[1770138990344,0.2,100.32,100.28,6.64119713]
[1770138990551,0.2,100.32,100.23,37.37613273]
[1770138990552,0.2,100.32,100.3,6.64119713]
[1770138990743,1e-08,100.35,100.31,9.04023145]
[1770138991140,1e-08,100.35,100.32,6.64119713]
[1770138991337,1e-08,100.35,100.3,6.64119713]
[1770138991338,6.64119714,100.35,100.3,6.64119713]
[1770138991538,2.45871809,100.33,100.29,6.64119713]
[1770138991742,19.06515011,100.35,100.3,6.64119713]
[1770138991936,6.64119713,100.34,100.29,6.64119713]
[1770138992154,9.09991522,100.33,100.28,16.61312792]
[1770138992359,9.09991522,100.33,100.27,7.47194034]
[1770138992360,6.64119713,100.32,100.27,7.47194034]
[1770138992554,6.64119713,100.31,100.26,45.16508252]
[1770138992750,6.64119713,100.31,100.26,38.52388539]
[1770138993059,6.64119713,100.31,100.26,45.16508252]
[1770138993263,6.64119713,100.3,100.26,27.72]
[1770138993442,6.64119713,100.31,100.26,45.12850784]
[1770138993754,12.42980194,100.29,100.24,7.39800559]
[1770138993956,6.64119713,100.28,100.23,6.64119713]
[1770138994148,6.64119713,100.25,100.2,17.37787635]
[1770138994961,9.09991522,100.25,100.2,17.37758633]
[1770138995157,9.09991522,100.25,100.2,7.39800559]
[1770138995341,6.64119713,100.26,100.21,6.64119713]
[1770138995539,2.45871809,100.27,100.23,6.64119713]
[1770138995745,2.45871809,100.31,100.26,6.64119713]
[1770138995949,2.45871809,100.31,100.27,6.64119713]
[1770138996148,2.45871809,100.33,100.3,6.64119713]
[1770138996463,1e-08,100.35,100.32,6.64119713]
[1770138996761,2.45871809,100.38,100.34,6.64119713]
[1770138996966,21.38806359,100.4,100.35,6.64119713]
[1770138996967,20.5273433,100.4,100.35,6.64119713]
[1770138997148,8.69428586,100.4,100.36,6.64119713]
[1770138997470,9.09991522,100.38,100.33,6.64119713]
[1770138997667,6.64119713,100.36,100.31,7.27171407]
[1770138997980,6.64119713,100.36,100.31,17.24056394]
[1770138998159,2.45871809,100.36,100.31,6.64119713]
[1770138998357,2.45871809,100.36,100.31,20.96962089]
[1770138998559,13.45940195,100.36,100.31,20.96927653]
[1770138998862,13.45940195,100.36,100.31,11.00068386]
[1770138999164,2.45871809,100.35,100.3,20.97073423]
[1770138999373,23.42351746,100.37,100.32,11.00068386]
[1770138999673,2.45871809,100.37,100.33,11.00068386]
[1770138999960,11.00068386,100.36,100.32,11.00068386]
[1770139000164,23.42269189,100.37,100.32,11.00068386]
[1770139000363,2.45871809,100.35,100.29,10.44932192]
[1770139000568,2.45871809,100.34,100.29,9.9706637]
[1770139000869,34.87113092,100.37,100.27,39.17934208]
[1770139000870,11.00068386,100.32,100.27,39.17934208]
[1770139001056,11.00068386,100.29,100.24,11.00068386]
[1770139001376,11.00068386,100.28,100.24,9.97563961]
[1770139001664,11.00068386,100.28,100.24,9.97601291]
[1770139001865,12.42974272,100.3,100.24,20.97669677]
[1770139002075,11.00068386,100.29,100.23,10.40576079]
[1770139002256,11.00068386,100.28,100.23,21.40644465]
[1770139002564,11.00068386,100.27,100.22,20.97825681]
[1770139002962,13.45940195,100.28,100.23,9.97682639]
[1770139003151,23.43042658,100.3,100.25,11.00068386]
[1770139003353,2.45871809,100.3,100.26,11.00068386]
[1770139004066,12.42724036,100.32,100.27,11.00068386]
[1770139004283,13.45940195,100.34,100.29,11.00068386]
[1770139004446,2.45871809,100.34,100.31,11.00068386]
[1770139005047,2.45871809,100.31,100.26,20.97405354]
[1770139005253,13.45940195,100.31,100.26,9.97336968]
[1770139005553,13.45940195,100.31,100.26,20.97405354]
[1770139005753,11.00068386,100.3,100.25,20.97565015]
[1770139005952,11.00068386,100.3,100.26,11.00068386]
[1770139006162,11.00068386,100.32,100.27,11.00068386]
[1770139006354,13.45940195,100.31,100.26,20.97458614]
[1770139006557,2.45871809,100.31,100.27,11.00068386]
[1770139006756,2.45871809,100.31,100.26,9.97390228]
[1770139006757,13.45940195,100.31,100.26,20.97458614]
[1770139006957,13.45940195,100.3,100.26,11.00068386]
[1770139007158,2.45871809,100.3,100.26,11.00068386]
[1770139007670,13.45940195,100.3,100.24,37.82008845]
[1770139007868,13.45940195,100.28,100.22,0.09851535]
[1770139008076,23.43283288,100.27,100.22,20.97838414]
[1770139008458,13.45940195,100.27,100.23,11.00068386]
[1770139008662,12.4302487,100.29,100.22,34.97624145]
[1770139008854,11.00068386,100.27,100.22,21.03180458]
[1770139009053,2.45871809,100.28,100.22,21.03180458]
[1770139009270,11.00068386,100.27,100.22,21.03180458]
[1770139009472,11.00068386,100.27,100.22,20.97838414]
[1770139009676,2.45871809,100.3,100.24,11.00068386]
[1770139009972,13.45940195,100.28,100.24,11.00068386]
[1770139010178,2.45871809,100.28,100.24,20.97638297]
[1770139010357,23.43181108,100.28,100.23,20.97752905]
[1770139010753,23.43181108,100.28,100.21,27.7]
[1770139010974,1.99281733,100.24,100.17,27.7]
[1770139011166,12.99350119,100.23,100.19,11.00068386]
[1770139011470,12.99350119,100.22,100.17,11.00068386]
[1770139011670,12.99350119,100.22,100.17,20.9833869]
[1770139011876,1.99281733,100.22,100.19,11.00068386]
[1770139012174,1.99281733,100.22,100.18,20.98190013]
[1770139012756,1.99281733,100.24,100.12,156.03376105]
[1770139013059,12.99350119,100.21,100.17,9.98282888]
[1770139013265,12.99350119,100.2,100.15,11.00068386]
[1770139013578,74.82058924,100.24,100.13,56.94113592]
[1770139013579,1.99281733,100.18,100.13,37.68657147]
[1770139013877,12.99350119,100.18,100.13,20.98725533]
[1770139014174,1.99281733,100.18,100.14,20.98635118]
[1770139014864,1.99281733,100.17,100.13,11.00068386]
[1770139015176,12.99350119,100.16,100.12,94.0240787]
[1770139015982,1.99281733,100.18,100.14,11.00068386]
[1770139016166,1.99281733,100.17,100.14,11.00068386]
[1770139016367,1.99281733,100.17,100.13,11.00068386]
[1770139017079,1.99281733,100.17,100.12,94.0240787]
[1770139017080,1.99281733,100.16,100.12,94.0240787]
[1770139017388,12.99350119,100.15,100.12,83.02339484]
[1770139017987,1.99281733,100.15,100.11,20.98969413]
[1770139018277,12.99350119,100.15,100.11,20.98969413]
[1770139018484,1.99281733,100.14,100.1,16.62969915]
[1770139018981,8.63292174,100.13,100.09,44.35087532]
[1770139019190,1.99281733,100.13,100.09,44.35039835]
[1770139019388,1.99281733,100.15,100.11,6.64010441]
[1770139019687,1.99281733,100.12,100.09,27.72]
[1770139019984,1.99281733,100.11,100.07,16.63234882]
[1770139020182,1.99281733,100.11,100.07,6.64010441]
[1770139020389,1.99281733,100.11,100.08,6.64010441]
[1770139020681,8.63292174,100.1,100.06,37.7134875]
[1770139020879,8.63292174,100.1,100.06,44.35359191]
[1770139020880,1.99281733,100.1,100.06,44.35359191]
[1770139021085,1.99281733,100.07,100.04,6.64010441]
[1770139021281,1.99281733,100.07,100.03,88.00588821]
[1770139021483,1.99281733,100.07,100.04,16.63605603]
[1770139021677,1.99281733,100.07,100.03,88.00633282]
[1770139021883,39.23703318,100.11,100.03,88.00633282]
[1770139021884,8.63292174,100.05,100.03,71.36942484]
[1770139022192,8.63292174,100.05,100.01,0.1]
[1770139022193,6.64010441,100.04,100.01,0.1]
[1770139022384,4.27527085,100.05,100.01,0.1]
[1770139022566,74.94753671,100.07,100.01,1.86041983]
[1770139022567,6.64010441,100.06,100.01,1.86041983]
[1770139022768,39.96341164,100.1,100.01,1.86041983]
[1770139022769,79.89430368,100.14,100.05,8.40052424]
[1770139022963,31.6076466,100.13,100.08,6.64010441]
[1770139023175,24.96754219,100.13,100.07,1.76041983]
[1770139023380,31.6076466,100.13,100.08,6.64010441]
[1770139023578,9.98601957,100.14,100.1,6.64010441]
[1770139023871,6.64010441,100.12,100.08,1.76041983]
[1770139024271,4.27527085,100.13,100.05,8.40052424]
[1770139024492,21.04542245,100.13,100.09,1.76041983]
[1770139024692,11.0581336,100.12,100.07,12.81855343]
[1770139024866,11.0581336,100.11,100.07,1.76041983]
[1770139025190,34.95483104,100.13,100.07,12.81855343]
[1770139025389,11.0581336,100.1,100.05,12.81855343]
[1770139025573,11.0581336,100.09,100.05,1.76041983]
[1770139025773,11.0581336,100.08,100.03,22.81494576]
[1770139026080,50.28823549,100.13,100.08,1.76041983]
[1770139026279,11.0581336,100.12,100.08,1.76041983]
[1770139026468,11.0581336,100.12,100.07,11.0581336]
[1770139026469,11.0581336,100.11,100.06,12.81855343]
[1770139026690,11.0581336,100.12,100.08,1.76041983]
[1770139026884,11.0581336,100.12,100.07,22.81142697]
[1770139027078,46.01296464,100.13,100.08,11.0581336]
[1770139027294,11.0581336,100.12,100.08,11.0581336]
[1770139027794,9.98728885,100.13,100.08,12.81855343]
[1770139027991,11.0581336,100.17,100.12,11.0581336]
[1770139028198,11.0581336,100.16,100.11,12.81855343]
[1770139028490,11.0581336,100.13,100.08,12.81855343]
[1770139028693,11.0581336,100.15,100.11,11.0581336]
[1770139028896,11.0581336,100.18,100.13,12.81855343]
[1770139029196,11.0581336,100.17,100.12,11.0581336]
[1770139029494,11.0581336,100.14,100.09,1.76041983]
[1770139029672,11.0581336,100.17,100.12,12.81855343]
[1770139029992,36.01072367,100.19,100.14,12.81855343]
[1770139030182,11.0581336,100.18,100.14,1.76041983]
[1770139030377,45.9917597,100.19,100.14,12.81855343]
[1770139030587,74.85777022,100.19,100.12,1.76041983]
[1770139030889,11.0581336,100.18,100.14,12.81855343]
[1770139031070,50.26703055,100.19,100.14,12.81855343]
[1770139031270,11.0581336,100.16,100.12,1.76041983]
[1770139031794,11.0581336,100.15,100.12,1.76041983]
[1770139031981,119.05718519,100.19,100.12,1.76041983]
[1770139031982,11.0581336,100.16,100.12,1.76041983]
[1770139032370,11.0581336,100.15,100.12,1.76041983]
[1770139032575,119.05718519,100.19,100.12,1.76041983]
[1770139032576,9.98420859,100.16,100.12,12.81855343]
[1770139033096,15.33340445,100.19,100.14,12.81855343]
[1770139033279,9.98103603,100.19,100.15,11.0581336]
[1770139033478,11.0581336,100.2,100.12,9.98785486]
[1770139033479,9.97968213,100.21,100.17,1.76041983]
[1770139033700,9.97968213,100.21,100.17,12.81855343]
[1770139033913,34.92729214,100.21,100.17,12.81855343]
[1770139034072,9.97968213,100.21,100.17,12.81855343]
[1770139034278,21.03518637,100.23,100.18,12.81855343]
[1770139034575,11.0581336,100.2,100.16,1.76041983]
[1770139034986,11.0581336,100.19,100.15,1.76041983]
[1770139035182,11.0581336,100.18,100.13,11.0581336]
[1770139035376,4.27527085,100.22,100.15,1.76041983]
[1770139035578,15.33340445,100.22,100.17,12.81855343]
[1770139035880,11.0581336,100.21,100.17,1.76041983]
[1770139036081,11.0581336,100.19,100.15,1.76041983]
[1770139036381,11.03617224,100.2,100.15,12.79659207]
[1770139036580,9.98103603,100.19,100.16,12.79659207]
[1770139036798,9.98003992,100.2,100.16,12.79659207]
[1770139037189,11.03617224,100.19,100.15,11.03617224]
[1770139037390,11.03617224,100.18,100.14,1.76041983]
[1770139037582,11.03617224,100.18,100.12,37.7275165]
[1770139037583,11.03617224,100.17,100.12,12.79659207]
[1770139038002,11.03617224,100.16,100.12,12.79659207]
[1770139038201,11.03617224,100.17,100.12,12.79659207]
[1770139038580,9.98311215,100.17,100.13,11.03617224]
[1770139038779,9.98311215,100.17,100.12,9.9876365]
[1770139038780,11.03617224,100.19,100.15,1.76041983]
[1770139038995,9.98103603,100.19,100.16,11.03617224]
[1770139039301,9.98103603,100.19,100.16,12.79659207]
[1770139039504,11.03617224,100.21,100.16,12.79659207]
[1770139039678,45.96282625,100.21,100.16,12.79659207]
[1770139039882,45.96282625,100.21,100.15,1.76041983]
[1770139039883,11.03617224,100.19,100.15,1.76041983]
[1770139040084,11.03617224,100.2,100.15,12.79659207]
[1770139040394,21.01521624,100.21,100.17,1.71078802]
[1770139040698,9.97862919,100.22,100.19,12.74696026]
[1770139040882,45.95992216,100.22,100.17,12.74696026]
[1770139041084,11.03617224,100.21,100.17,1.71078802]
[1770139041277,11.03617224,100.19,100.15,1.71078802]
[1770139041502,11.03617224,100.18,100.14,1.71078802]
[1770139041700,11.03617224,100.19,100.15,1.71078802]
[1770139042201,11.03617224,100.17,100.13,1.71078802]
[1770139042403,11.03617224,100.19,100.14,12.74696026]
[1770139042700,9.98203234,100.18,100.15,1.71078802]
[1770139042902,9.98155406,100.19,100.15,12.74696026]
[1770139043079,21.01521624,100.21,100.17,1.71078802]
[1770139043281,11.03617224,100.19,100.15,1.71078802]
[1770139043483,11.03617224,100.17,100.13,1.71078802]
[1770139043698,11.03617224,100.16,100.13,1.71078802]
[1770139043893,11.03617224,100.17,100.13,1.71078802]
[1770139044295,11.03617224,100.16,100.13,1.71078802]
[1770139044495,11.03617224,100.17,100.13,1.71078802]
[1770139044695,11.03617224,100.16,100.13,1.71078802]
[1770139044894,34.9336261,100.19,100.11,1.71078802]
[1770139044895,11.03617224,100.15,100.11,1.71078802]
[1770139045108,34.9336261,100.19,100.15,1.71078802]
[1770139045292,34.9336261,100.19,100.16,11.03617224]
[1770139045599,34.9336261,100.19,100.15,1.71078802]
[1770139045600,9.97705277,100.23,100.19,1.71078802]
[1770139045780,9.97705277,100.23,100.19,12.74696026]
[1770139045981,34.91968471,100.23,100.19,12.74696026]
[1770139046409,16.60531561,100.24,100.19,8.33966228]
[1770139046707,31.56353588,100.27,100.23,1.71078802]
[1770139046882,0.2,100.29,100.25,8.33966228]
[1770139047080,35.09913069,100.29,100.25,8.33966228]
[1770139047304,0.2,100.29,100.27,1.71078802]
[1770139047511,0.2,100.29,100.28,6.62887426]
[1770139047808,16.59754125,100.32,100.28,1.71078802]
[1770139047996,9.96866699,100.32,100.28,8.33966228]
[1770139048189,9.96866699,100.32,100.29,1.61078802]
[1770139048389,9.96866699,100.32,100.28,11.00860529]
[1770139048823,9.96866699,100.32,100.26,11.00860529]
[1770139049000,11.00860529,100.34,100.29,11.00860529]
[1770139049303,11.00860529,100.35,100.3,11.00860529]
[1770139049496,20.97273442,100.36,100.31,11.00860529]
[1770139049899,45.88305725,100.36,100.31,11.00860529]
[1770139050091,34.87445196,100.36,100.3,11.00860529]
[1770139050292,11.00860529,100.34,100.29,11.00860529]
[1770139050498,11.00860529,100.34,100.3,0.80539401]
[1770139050700,9.96810207,100.32,100.28,0.80539401]
[1770139050894,27.72,100.37,100.3,0.80539401]
[1770139051196,11.00860529,100.35,100.31,0.80539401]
[1770139051401,11.00860529,100.34,100.31,0.80539401]
[1770139051907,11.00860529,100.35,100.31,0.80539401]
[1770139052291,11.00860529,100.35,100.25,79.79987846]
[1770139052292,11.00860529,100.32,100.29,0.80539401]
[1770139052908,20.9765394,100.33,100.29,0.80539401]
[1770139053107,11.00860529,100.31,100.26,11.00860529]
[1770139053610,11.00860529,100.3,100.25,20.98352716]
[1770139053904,11.00860529,100.31,100.25,20.98361421]
[1770139054106,11.00860529,100.31,100.26,11.00860529]
[1770139054307,39.3555823,100.33,100.27,11.00860529]
[1770139054605,11.00860529,100.31,100.26,11.00860529]
[1770139054803,20.97866202,100.31,100.26,11.00860529]
[1770139055103,20.97866202,100.31,100.27,0.50546256]
[1770139055305,9.97005673,100.31,100.27,11.51406785]
[1770139055491,9.97005673,100.31,100.26,11.51406785]
[1770139055492,11.00860529,100.31,100.26,11.51406785]
[1770139055699,11.00860529,100.29,100.26,0.50546256]
[1770139055892,11.00860529,100.29,100.24,0.50546256]
[1770139056199,11.00860529,100.26,100.21,0.50546256]
[1770139056403,11.00860529,100.26,100.2,9.97999655]
[1770139056404,11.00860529,100.22,100.17,11.00860529]
[1770139056707,11.00860529,100.21,100.16,20.99254156]
[1770139056886,20.98782984,100.21,100.16,20.99254156]
[1770139057087,20.98782984,100.21,100.15,11.00860529]
[1770139057308,9.97605746,100.24,100.18,11.00860529]
[1770139057512,11.00860529,100.23,100.18,11.00860529]
[1770139057803,11.54586432,100.22,100.16,20.99260111]
[1770139058113,11.00860529,100.21,100.16,11.00860529]
[1770139058284,0.53725903,100.22,100.16,11.00860529]
[1770139058593,0.53725903,100.2,100.14,0.50546256]
[1770139058795,20.9910416,100.18,100.14,0.50546256]
[1770139059001,9.98139469,100.19,100.14,11.51406785]
[1770139059204,11.00860529,100.18,100.14,0.50546256]
[1770139059793,11.00860529,100.17,100.12,0.50546256]
[1770139060099,11.00860529,100.17,100.12,11.51406785]
[1770139060306,11.54586432,100.18,100.13,11.51406785]